Workbook

Sheet BIG SIMULATOR (hidden)
N2: Estado Civil
N3: Solteiro / Viúvo / Divorciado | O3: 0
N4: Casado / Unido de facto | O4: 1
N7: Número de Filhos
N8: 0
N9: 1
N10: 2
N11: 3
N12: 4
B13: DESCRIÇÃO | G13: 2021 | H13: 2022 | N13: 5
N15: Número de Ascendentes
B16: RENDIMENTO BRUTO | N16: 0
B17: TRABALHO DEPENDENTE | G17: =H118 -> 0 | H17: =I118 -> 0 | N17: 1
B18: PENSÕES DE VELHICE | G18: =H136 -> 0 | H18: =I136 -> 0 | N18: 2
N19: 3
B20: TOTAL | G20: =G17+G18 -> 0 | H20: 0 | N20: 4
B22: DEDUÇÕES ESPECÍFICAS
B23: TRABALHO DEPENDENTE | G23: =H120 -> 0 | H23: =I120 -> 0 | N23: Tributação conjunta | O23: 1
N24: Tributação separada | O24: 2
B26: PENSÕES | G26: =H138 -> 0 | H26: =I138 -> 0
B27: TOTAL | G27: =G23+G26 -> 0 | H27: 0
B29: RENDIMENTO COLETÁVEL | G29: =G20-G27 -> 0 | H29: 0
B35: CÁLCULO DO IMPOSTO:
B36: COEFICIENTE CONJUGAL | G36: =IF((IF(C87=1,G29,IF(AND(C97=2,C87=2),G29,G29/2)))<0,0,(IF(C87=1,G29,IF(AND(C97=2,C87=2),G29,G29/2)))) -> 0 | H36: =IF((IF(C87=1,H29,IF(AND(C97=2,C87=2),H29,H29/2)))<0,0,(IF(C87=1,H29,IF(AND(C97=2,C87=2),H29,H29/2)))) -> 0
B37: TAXA A APLICAR | G37: =VLOOKUP($G$36,$K$102:$N$108,3,TRUE) -> 0.145 | H37: =VLOOKUP($H$36,$K$127:$N$135,3,TRUE) -> 0.145
B38: APLICAÇÃO DE TAXA PROGRESSIVA | G38: =IFERROR(ROUND(G37*G36,2),"") -> 0 | H38: 0
B39: PARCELA A ABATER | G39: =VLOOKUP($G$36,$K$102:$N$108,4,TRUE) -> 0 | H39: =VLOOKUP($H$36,$K$127:$N$135,4,TRUE) -> 0
B40: TAXA DE SOLIDARIEDADE | G40: =IF($C$87=1,((VLOOKUP(G36,$P$104:$S$106,3,TRUE)*G36)-VLOOKUP(G36,$P$104:$S$106,4,TRUE)),IF(AND($C$87=2,$C$97=1),((VLOOKUP(G36,$P$104:$S$106,3,TRUE)*G36)-VLOOKUP(G36,$P$104:$S$106,4,TRUE))*2,((VLOOKUP(G36,$P$104:$S$106,3,TRUE)*G36)-VLOOKUP(G36,$P$104:$S$106,4,TRUE)))) -> 0 | H40: =IF($C$87=1,((VLOOKUP(H36,$P$104:$S$106,3,TRUE)*H36)-VLOOKUP(H36,$P$104:$S$106,4,TRUE)),IF(AND($C$87=2,$C$97=1),((VLOOKUP(H36,$P$104:$S$106,3,TRUE)*H36)-VLOOKUP(H36,$P$104:$S$106,4,TRUE))*2,((VLOOKUP(H36,$P$104:$S$106,3,TRUE)*H36)-VLOOKUP(H36,$P$104:$S$106,4,TRUE)))) -> 0
B42: SUB-TOTAL | G42: =IFERROR(ROUND((G38-G39+G40),2),"") -> 0 | H42: 0
B44: COLETA | G44: =IF($C$87=1,G42,IF(AND($C$87=2,$C$97=1),(G38-G39)*2+G40,G38-G39+G40)) -> 0 | H44: =IF($C$87=1,H42,IF(AND($C$87=2,$C$97=1),(H38-H39)*2+H40,H38-H39+H40)) -> 0
B46: DEDUÇÕES À COLECTA
B47: DEDUÇÕES DEPENDENTES E ASCENDENTES | G47: =G162+G163 -> 0 | H47: =H162+H163 -> 0
B48: DESPESAS GERAIS | G48: =IF(C87=1,IF(C91<>0,IF(0.45*H91>335,335,0.45*H91),IF(0.35*H91>250,250,0.35*H91)),IF(C97=1,IF(0.35*H91>500,500,0.35*H91),IF(0.35*H91>250,250,0.35*H91))) -> 0 | H48: =IF(C87=1,IF(C91<>0,IF(0.45*H91>335,335,0.45*H91),IF(0.35*H91>250,250,0.35*H91)),IF(C97=1,IF(0.35*H91>500,500,0.35*H91),IF(0.35*H91>250,250,0.35*H91))) -> 0
B50: DESPESAS DE SAÚDE | G50: =IF(C87=1,IF(H86*0.15>1000,1000,0.15*H86),IF(C97=2,IF(H86*0.075>500,500,0.075*H86),IF(H86*0.15>1000,1000,0.15*H86))) -> 0 | H50: =IF(C87=1,IF(H86*0.15>1000,1000,0.15*H86),IF(C97=2,IF(H86*0.075>500,500,0.075*H86),IF(H86*0.15>1000,1000,0.15*H86))) -> 0
B51: DESPESAS DE EDUCAÇÃO | G51: =IF($C$87=1,IF($H$87*0.3>800,800,0.3*$H$87),IF($C$97=2,IF($H$87*0.15>400,400,0.15*$H$87),IF($H$87*0.3>800,800,0.3*$H$87))) -> 0 | H51: =IF($C$87=1,IF($H$87*0.3>800,800,0.3*$H$87),IF($C$97=2,IF($H$87*0.15>400,400,0.15*$H$87),IF($H$87*0.3>800,800,0.3*$H$87))) -> 0
B52: ENCARGOS COM IMÓVEIS - JUROS | G52: =IF($C$96<=2011,IF($C$87=1,IF(G36>30000,IF($H$88*0.15>296,296,$H$88*0.15),IF(0.15*$H$88>VLOOKUP(G36,$F$175:$I$176,3,TRUE),VLOOKUP(G36,$F$175:$I$176,3,TRUE),0.15*$H$88)),IF($C$97=2,IF(G36>30000,IF($H$88*0.075>148,148,$H$88*0.075),IF(0.075*$H$88>0.5*VLOOKUP(G36,$F$175:$I$176,3,TRUE),0.5*VLOOKUP(G36,$F$175:$I$176,3,TRUE),0.075*$H$88)),IF($C$97=1,IF(G36>30000,IF($H$88*0.15>296,296,$H$88*0.15),IF(0.15*$H$88>VLOOKUP(G36,$F$175:$I$176,3,TRUE),VLOOKUP(G36,$F$175:$I$176,3,TRUE),0.15*$H$88)),0)))) -> 0 | H52: =IF($C$96<=2011,IF($C$87=1,IF(H36>30000,IF($H$88*0.15>296,296,$H$88*0.15),IF(0.15*$H$88>VLOOKUP(H36,$F$188:$I$189,3,TRUE),VLOOKUP(H36,$F$188:$I$189,3,TRUE),0.15*$H$88)),IF($C$97=2,IF(H36>30000,IF($H$88*0.075>148,148,$H$88*0.075),IF(0.075*$H$88>0.5*VLOOKUP(H36,$F$188:$I$189,3,TRUE),0.5*VLOOKUP(H36,$F$188:$I$189,3,TRUE),0.075*$H$88)),IF($C$97=1,IF(H36>30000,IF($H$88*0.15>296,296,$H$88*0.15),IF(0.15*$H$88>VLOOKUP(H36,$F$188:$I$189,3,TRUE),VLOOKUP(H36,$F$188:$I$189,3,TRUE),0.15*$H$88)),0)))) -> 0
B53: RENDAS | G53: =IF($C$87=1,IF(G36>30000,IF($H$89*0.15>502,502,$H$89*0.15),IF(0.15*$H$89>VLOOKUP(G36,$F$169:$I$170,3,TRUE),VLOOKUP(G36,$F$169:$I$170,3,TRUE),0.15*$H$89)),IF($C$97=2,IF(G36>30000,IF($H$89*0.075>251,251,$H$89*0.075),IF(0.075*$H$89>0.5*VLOOKUP(G36,$F$169:$I$170,3,TRUE),0.5*VLOOKUP(G36,$F$169:$I$170,3,TRUE),0.075*$H$89)),IF(G36>30000,IF($H$89*0.15>502,502,$H$89*0.15),IF(0.15*$H$89>VLOOKUP(G36,$F$169:$I$170,3,TRUE),VLOOKUP(G36,$F$169:$I$170,3,TRUE),0.15*$H$89)))) -> 0 | H53: =IF($C$87=1,IF(H36>30000,IF($H$89*0.15>502,502,$H$89*0.15),IF(0.15*$H$89>VLOOKUP(H36,$F$181:$I$182,3,TRUE),VLOOKUP(H36,$F$181:$I$182,3,TRUE),0.15*$H$89)),IF($C$97=2,IF(H36>30000,IF($H$89*0.075>251,251,$H$89*0.075),IF(0.075*$H$89>0.5*VLOOKUP(H36,$F$181:$I$182,3,TRUE),0.5*VLOOKUP(H36,$F$181:$I$182,3,TRUE),0.075*$H$89)),IF(H36>30000,IF($H$89*0.15>502,502,$H$89*0.15),IF(0.15*$H$89>VLOOKUP(H36,$F$181:$I$182,3,TRUE),VLOOKUP(H36,$F$181:$I$182,3,TRUE),0.15*$H$89)))) -> 0
B54: PENSÃO DE ALIMENTOS | G54: =0.2*H90 -> 0 | H54: =0.2*H90 -> 0
B55: TOTAL (SAUDE; EDUCAÇÃO; IMOVEIS; RENDAS; PENSÕES DE ALIMENTOS) | G55: =SUM(G50:G54) -> 0 | H55: 0
B56: CONTRIBUIÇÕES PARA PPR | G56: =IF(G18=0,IF('Simular IRS 2022'!F20<35,IF(0.2*'BIG SIMULATOR'!H92>400,400,0.2*'BIG SIMULATOR'!H92),IF(AND('Simular IRS 2022'!F20>=35,'Simular IRS 2022'!F20<=50),IF(0.2*'BIG SIMULATOR'!H92>350,350,0.2*'BIG SIMULATOR'!H92),IF(0.2*'BIG SIMULATOR'!H92>300,300,0.2*'BIG SIMULATOR'!H92)))+IF('Simular IRS 2022'!F22<35,IF(0.2*'BIG SIMULATOR'!H93>400,400,0.2*'BIG SIMULATOR'!H93),IF(AND('Simular IRS 2022'!F22>=35,'Simular IRS 2022'!F22<=50),IF(0.2*'BIG SIMULATOR'!H93>350,350,0.2*'BIG SIMULATOR'!H93),IF(0.2*'BIG SIMULATOR'!H93>300,300,0.2*'BIG SIMULATOR'!H93))),0) -> 0 | H56: =IF(H18=0,IF('Simular IRS 2022'!F20<35,IF(0.2*'BIG SIMULATOR'!H92>400,400,0.2*'BIG SIMULATOR'!H92),IF(AND('Simular IRS 2022'!F20>=35,'Simular IRS 2022'!F20<=50),IF(0.2*'BIG SIMULATOR'!H92>350,350,0.2*'BIG SIMULATOR'!H92),IF(0.2*'BIG SIMULATOR'!H92>300,300,0.2*'BIG SIMULATOR'!H92)))+IF('Simular IRS 2022'!F22<35,IF(0.2*'BIG SIMULATOR'!H93>400,400,0.2*'BIG SIMULATOR'!H93),IF(AND('Simular IRS 2022'!F22>=35,'Simular IRS 2022'!F22<=50),IF(0.2*'BIG SIMULATOR'!H93>350,350,0.2*'BIG SIMULATOR'!H93),IF(0.2*'BIG SIMULATOR'!H93>300,300,0.2*'BIG SIMULATOR'!H93))),0) -> 0
B57: ENCARGOS COM DONATIVOS | G57: =IF(0.25*H94*1.3>0.15*G44,0.15*G44,0.25*H94*1.3) -> 0 | H57: =IF(0.25*H94*1.3>0.15*H44,0.15*H44,0.25*H94*1.3) -> 0
B58: TOTAL (EBF) | G58: =SUM(G56:G57) -> 0 | H58: 0
B60: LIMITE OU SOMA | G60: =IF($C$87=1,MIN(G55+G58,VLOOKUP(G36,$K$113:$M$115,3,TRUE)),IF($C$97=2,MIN(G55+G58,0.5*VLOOKUP(G36,$K$113:$M$115,3,TRUE)),MIN(G55+G58,VLOOKUP(G36,$K$113:$M$115,3,TRUE)))) -> 0 | H60: =IF($C$87=1,MIN(H55+H58,VLOOKUP(H36,$K$140:$M$142,3,TRUE)),IF($C$97=2,MIN(H55+H58,0.5*VLOOKUP(H36,$K$140:$M$142,3,TRUE)),MIN(H55+H58,VLOOKUP(H36,$K$140:$M$142,3,TRUE)))) -> 0
K61: ME na Trib. Conjunta
B63: TOTAL DAS DEDUÇÕES | G63: =MIN(G47+G60+G48,G44) -> 0 | H63: 0
K64: 2021 | M64: 2022
B65: IMPOSTO APURADO | G65: =IF(G44-G63<0,0,G44-G63) -> 0 | H65: 0 | K65: ME Garantido SPA? | L65: Diferença | M65: ME Garantido SPA? | N65: Diferença
K66: =IF((M86+M88)-G65/(G20-G27)*(M86+M88-H111-H128)>G73,"Sim","Não") ->  | L66: =IF(K66="Sim",IF(M86+M88>G73,(M86+M88-G65/(G20-G27)*(M86+M88-H111-H128)-G73),G65/(G20-G27)*(M86+M88-H111-H128)),IF(M86+M88>G73,(M86+M88-G65/(G20-G27)*(M86+M88-H111-H128)-G73)*-1,G65/(G20-G27)*(M86+M88-H111-H128))*-1) ->  | M66: =IF((M86+M88)-H65/(G20-G27)*(M86+M88-I111-I128)>H73,"Sim","Não") ->  | N66: =IF(M66="Sim",IF(M86+M88>H73,(M86+M88-H65/(H20-H27)*(M86+M88-I111-I128)-H73),H65/(H20-H27)*(M86+M88-I111-I128)),IF(M86+M88>H73,(M86+M88-H65/(H20-H27)*(M86+M88-I111-I128)-H73)*-1,H65/(H20-H27)*(M86+M88-I111-I128))*-1) -> 
K67: ME Garantido SPB? | M67: ME Garantido SPB?
K68: =IF((N86+N88)-G65/(G20-G27)*(N86+N88-H116-H134)>G73,"Sim","Não") ->  | L68: =IF(K68="Sim",IF(N86+N88>G73,(N86+N88-G65/(G20-G27)*(N86+N88-H116-H134)-G73),G65/(G20-G27)*(N86+N88-H116-H134)),IF(N86+N88>G73,(N86+N88-G65/(G20-G27)*(N86+N88-H116-H134)-G73)*-1,G65/(G20-G27)*(N86+N88-H116-H134))*-1) ->  | M68: =IF((N86+N88)-H65/(G20-G27)*(N86+N88-I116-I134)>H73,"Sim","Não") ->  | N68: =IF(M68="Sim",IF(N86+N88>H73,(N86+N88-H65/(H20-H27)*(N86+N88-I116-I134)-H73),H65/(H20-H27)*(N86+N88-I116-I134)),IF(N86+N88>H73,(N86+N88-H65/(H20-H27)*(N86+N88-I116-I134)-H73)*-1,H65/(H20-H27)*(N86+N88-I116-I134))*-1) -> 
K70: Soma | L70: =IF(L66+L68<0,(L66+L68)*-1,0) ->  | N70: =IF(N66+N68<0,(N66+N68)*-1,0) -> 
B72: RENDIMENTO LÍQUIDO | G72: =G20-G65 -> 0 | H72: 0 | K72: ME Não Casado | L72: =IF(G74="Não",0,IF(G20>G73,G73-G72,G65)) -> 0 | M72: =IF(H74="Não",0,IF(H20>H73,H73-H72,H65)) -> 0
B73: MÍNIMO DE EXISTÊNCIA | G73: =MAX(1.5*14*K82+200,K79) -> 9415.01 | H73: =MAX(1.5*14*L82,L79) -> 9870 | K73: ME Casado Tsep | L73: =IF(G74="Não",0,IF(G20>G73,G73-G72,G65)) -> 0 | M73: =IF(H74="Não",0,IF(H20>H73,H73-H72,H65)) -> 0
B74: APLICAÇÃO DE MÍNIMO DE EXISTÊNCIA? | G74: =IFERROR(IF(AND($C$87=2,$C$97=2,G72<G73),"Sim",IF(AND($C$87=1,G72<G73),"Sim",IF(AND($C$87=2,$C$97=1,L70<>0),"Sim","Não"))),"N/A") -> Sim | H74: =IFERROR(IF(AND($C$87=2,$C$97=2,H72<H73),"Sim",IF(AND($C$87=1,H72<H73),"Sim",IF(AND($C$87=2,$C$97=1,N70<>0),"Sim","Não"))),"N/A") -> Sim
B75: A DECRESCER À COLETA | G75: =+IF($C$87=1,$L$72,IF(AND($C$87=2,$C$97=2),$L$73,L70)) -> 0 | H75: =+IF($C$87=1,$M$72,IF(AND($C$87=2,$C$97=2),$M$73,N70)) -> 0
B77: IMPOSTO APURADO APÓS MÍNIMO DE EXISTÊNCIA | G77: =G65-G75 -> 0 | H77: 0
B78: TAXA EFETIVA | G78: =IFERROR(G77/G20,0) -> 0 | H78: =IFERROR(H77/H20,0) -> 0 | K78: SMN 2021 | L78: SMN 2022
K79: =665*14 -> 9310 | L79: =705*14 -> 9870
B80: RENDIMENTO LÍQUIDO APÓS MÍNIMO DE EXISTÊNCIA | G80: =G20-G77 -> 0 | H80: =H20-H77 -> 0
B81: DIFERENÇA RENDIMENTO LÍQUIDO | H81: =H80-G80 -> 0 | K81: IAS 2021 | L81: IAS 2022
K82: 438.81 | L82: 443.2 | M82: Minímo de existência de 2021: adicionados 200 Euros, via OE2022.
F84: DEDUÇÕES À COLETA | K84: RENDIMENTO | M84: Sujeito Passivo A | N84: Sujeito Passivo B
C86: ='Simular IRS 2022'!F8 -> 0 | F86: Despesas de saúde | H86: ='Simular IRS 2022'!G37 -> 0 | K86: RENDIMENTO DO TRABALHO | M86: ='Simular IRS 2022'!G27 -> 0 | N86: ='Simular IRS 2022'!L27 -> 0
B87: Estado Civil: Solteiro (1), Casado (2) | C87: =IF(C86="Casado / Unido de facto",2,1) -> 1 | F87: Despesas de educação | H87: ='Simular IRS 2022'!G39 -> 0
B88: ≤3 | C88: ='Simular IRS 2022'!F12 -> 0 | F88: Encargos com imóveis - juros | H88: ='Simular IRS 2022'!G44 -> 0 | K88: PENSÕES VELHICE | M88: ='Simular IRS 2022'!G31 -> 0 | N88: ='Simular IRS 2022'!L31 -> 0
B89: >3e ≤6 | C89: ='Simular IRS 2022'!F14 -> 0 | F89: Rendas | H89: ='Simular IRS 2022'!G46 -> 0
B90: >6 | C90: ='Simular IRS 2022'!F16 -> 0 | F90: Pensão de alimentos | H90: ='Simular IRS 2022'!G50 -> 0 | L90: TOTAL | M90: =SUM(M86,N86,M88,N88) -> 0
B91: Nº de dependentes*: | C91: =C88+C89+C90 -> 0 | F91: Despesas Gerais | H91: ='Simular IRS 2022'!G48 -> 0
B92: Nº de ascendentes | C92: ='Simular IRS 2022'!F18 -> 0 | F92: PPR A | H92: ='Simular IRS 2022'!G56 -> 0
F93: PPR B | H93: ='Simular IRS 2022'!G58 -> 0
F94: Donativos | H94: ='Simular IRS 2022'!G60 -> 0 | K94: Taxas IRS e limites dedução à coleta
B96: Ano de contrato | C96: ='Simular IRS 2022'!G42 -> 0
B97: Tipo de tributação | C97: =IF(C98="Tributação separada",2,1) -> 1 | K97: 2021 | M97: Continente
C98: ='Simular IRS 2022'!F10 -> 0
K99: Rendimento colectável | M99: Taxa | N99: Parcela
K100: (Euros) | M100: (%) | N100: Abater
K101: De | L101: Até | N101: (Euros) | P101: TAXA ADICIONAL DE SOLIDARIEDADE
K102: 0 | L102: 7112 | M102: 0.145 | N102: 0
C103: RENDIMENTO | K103: =L102 -> 7112 | L103: 10732 | M103: 0.23 | N103: 604.52 | P103: Escalões | R103: Taxa | S103: Parcela
K104: 10732 | L104: 20322 | M104: 0.285 | N104: 1194.79 | P104: 0 | Q104: 80000 | R104: 0 | S104: 0
C105: Trabalho Dependente - Dedução específica | K105: 20322 | L105: 25075 | M105: 0.35 | N105: 2515.66 | P105: 80000 | Q105: 250000 | R105: 0.025 | S105: 2000
H106: 2021 | I106: 2022 | K106: 25075 | L106: 36967 | M106: 0.37 | N106: 3017.27 | P106: 250000 | Q106: 1e+17 | R106: 0.05 | S106: 8250
K107: 36967 | L107: 80882 | M107: 0.45 | N107: 5974.61
C108: Sujeito Passivo A | E108: Rendimento do trabalho dependente do sujeito passivo A | H108: =M86 -> 0 | I108: =M86 -> 0 | K108: 80882 | L108: 99999999999 | M108: 0.48 | N108: 8401.21
E109: Contribuições obrigatórias para a SS | H109: =0.11*H108 -> 0 | I109: 0
E110: Dedução mínima prevista para rendimentos da categoria | H110: 4104 | I110: 4104 | M110: Limite das deduções à colecta
E111: Dedução aplicável | H111: =IF(H108>=H110,IF(H109=0,H110,IF(H109>H110,H109,H110)),H108) -> 0 | I111: 0
C113: Sujeito Passivo B | E113: Rendimento do trabalho dependente do sujeito passivo B | H113: =N86 -> 0 | I113: =N86 -> 0 | K113: 0 | L113: 7112 | M113: 9999999
E114: Contribuições obrigatórias para a SS | H114: =H113*0.11 -> 0 | I114: 0 | K114: =L113 -> 7112 | L114: 80882 | M114: =IF(C91>2,(1+(0.05*C91))*(1000+(1500*((80882-G36)/(80882-7112)))),1000+(1500*((80882-G36)/(80882-7112)))) -> 2644.611631
E115: Dedução mínima prevista para rendimentos da categoria | H115: 4104 | I115: 4104 | K115: 80882 | L115: 99999999999 | M115: =IF(C91>2,(1+(0.05*C91))*1000,1000) -> 1000
E116: Dedução aplicável | H116: =IF(H113>=H115,IF(H114=0,H115,IF(H114>H115,H114,H115)),H113) -> 0 | I116: 0
C118: TOTAL SP A+B | E118: RENDIMENTO BRUTO DA CATEGORIA | H118: =H108+H113 -> 0 | I118: 0
C120: TOTAL SP A+B | E120: DEDUÇÃO ESPECÍFICA AOS REND. CATEGORIA | H120: =H111+H116 -> 0 | I120: 0
K122: 2022 | M122: Continente
C123: Pensões - Dedução específica
K124: Rendimento colectável | M124: Taxa | N124: Parcela
C125: Sujeito Passivo A | E125: Pensões de velhice | H125: =M88 -> 0 | I125: =M88 -> 0 | K125: (Euros) | M125: (%) | N125: Abater
E126: Total de Pensões | H126: =H125 -> 0 | I126: 0 | K126: De | L126: Até | N126: (Euros)
E127: Dedução mínima prevista para rendimentos da categoria | H127: 4104 | I127: 4104 | K127: 0 | L127: 7116 | M127: 0.145 | N127: 0
E128: Dedução aplicável | H128: =IF(H126<4104,H126,4104) -> 0 | I128: 0 | K128: =+L127+0.01 -> 7116.01 | L128: 10736 | M128: 0.23 | N128: 604.86
K129: 10736 | L129: 15216 | M129: 0.265 | N129: 980.62624
K130: 15216 | L130: 19696 | M130: 0.285 | N130: 1284.9912
C131: Sujeito Passivo B | E131: Pensões de velhice | H131: =N88 -> 0 | I131: =N88 -> 0 | K131: 19696.01 | L131: 25076 | M131: 0.35 | N131: 2565.20704
E132: Total de Pensões | H132: =H131 -> 0 | I132: 0 | K132: 25076.01 | L132: 36757 | M132: 0.37 | N132: 3066.7948
E133: Dedução mínima prevista para rendimentos da categoria | H133: 4104 | I133: 4104 | K133: 36757.01 | L133: 48033 | M133: 0.435 | N133: 5455.84151
E134: Dedução aplicável | H134: =IF(H132<4104,H132,4104) -> 0 | I134: 0 | K134: =L133 -> 48033 | L134: 75009 | M134: 0.45 | N134: 6176.56347
K135: =L134 -> 75009 | L135: 99999999999 | M135: 0.48 | N135: 8426.51
C136: TOTAL SP A+B | E136: RENDIMENTO BRUTO DA CATEGORIA | H136: =H131+H125 -> 0 | I136: 0
M137: Limite das deduções à colecta
C138: TOTAL SP A+B | E138: DEDUÇÃO ESPECÍFICA AOS REND. CATEGORIA | H138: =H128+H134 -> 0 | I138: 0
K140: 0 | L140: =L127 -> 7116 | M140: 9999999
K141: =L140 -> 7116 | L141: 80000 | M141: =IF(C91>2,(1+(0.05*C91))*(1000+(1500*((80000-H36)/(80000-7116)))),1000+(1500*((80000-H36)/(80000-7116)))) -> 2646.451896
F142: Número de Dependentes | K142: 80000 | L142: 99999999999 | M142: =IF(C91>2,(1+(0.05*C91))*1000,1000) -> 1000
F143: Idade ≤ 3 anos a 31/12 | H143: =C88 -> 0
F144: Idade >3 anos e ≤ 6 anos a 31/12 | H144: =C89 -> 0
F145: Idade > 6 anos a 31/12 | H145: =C90 -> 0
F146: Total | H146: =H143+H144+H145 -> 0
F147: Número de Ascendentes
F148: Ascendentes | H148: =+C92 -> 0
G152: 2021 | H152: 2022
F154: Dependentes com 3 anos ou menos (sem maj) | G154: 726 | H154: 726
F155: Dependentes com 3 anos ou menos (com maj) | G155: 900 | H155: 900
F156: Dependentes entre 4 e 6 anos (com maj) | G156: 600 | H156: 750
F157: Dependentes com mais de 6 anos | G157: 600 | H157: 600
F158: Ascendentes (mais do que 1) | G158: 525 | H158: 525
F159: Ascendentes (apenas 1) | G159: 635 | H159: 635
G161: 2021 | H161: 2022
F162: Dedução dependentes | G162: =IF(AND(C87=2,C97=2,H146<2),(G154/2)*H143+(G157/2)*(H144+H145),IF(AND(C87=2,C97=2,H145>0),G157/2*H145+G156/2*H144+G155/2*H143,IF(AND(C87=2,C97=2,H144>1,H143=0),G157/2+G156/2*(H144-1),IF(AND(C87=2,C97=2,H143>1,H144=0),G154/2+G155/2*(H143-1),IF(AND(C87=2,C97=2,H143>0,H144>0),G157/2+G156/2*(H144-1)+G155/2*H143,IF(AND(C87=2,C97=1,H146<2),G154*H143+G157*(H144+H145),IF(AND(C87=2,C97=1,H145>0),G157*H145+G156*H144+G155*H143,IF(AND(C87=2,C97=1,H144>1,H143=0),G157+G156*(H144-1),IF(AND(C87=2,C97=1,H143>1,H144=0),G154+G155*(H143-1),IF(AND(C87=2,C97=1,H143>0,H144>0),G157+G156*(H144-1)+G155*H143,IF(AND(C87=1,H146<2),G154*H143+G157*(H144+H145),IF(AND(C87=1,H145>0),G157*H145+G156*H144+G155*H143,IF(AND(C87=1,H144>1,H143=0),G157+G156*(H144-1),IF(AND(C87=1,H143>1,H144=0),G154+G155*(H143-1),IF(AND(C87=1,H143>0,H144>0),G157+G156*(H144-1)+G155*H143))))))))))))))) -> 0 | H162: =IF(AND(C87=2,C97=2,H146<2),(H154/2)*H143+(H157/2)*(H144+H145),IF(AND(C87=2,C97=2,H145>0),H157/2*H145+H156/2*H144+H155/2*H143,IF(AND(C87=2,C97=2,H144>1,H143=0),H157/2+H156/2*(H144-1),IF(AND(C87=2,C97=2,H143>1,H144=0),H154/2+H155/2*(H143-1),IF(AND(C87=2,C97=2,H143>0,H144>0),H157/2+H156/2*(H144-1)+H155/2*H143,IF(AND(C87=2,C97=1,H146<2),H154*H143+H157*(H144+H145),IF(AND(C87=2,C97=1,H145>0),H157*H145+H156*H144+H155*H143,IF(AND(C87=2,C97=1,H144>1,H143=0),H157+H156*(H144-1),IF(AND(C87=2,C97=1,H143>1,H144=0),H154+H155*(H143-1),IF(AND(C87=2,C97=1,H143>0,H144>0),H157+H156*(H144-1)+H155*H143,IF(AND(C87=1,H146<2),H154*H143+H157*(H144+H145),IF(AND(C87=1,H145>0),H157*H145+H156*H144+H155*H143,IF(AND(C87=1,H144>1,H143=0),H157+H156*(H144-1),IF(AND(C87=1,H143>1,H144=0),H154+H155*(H143-1),IF(AND(C87=1,H143>0,H144>0),H157+H156*(H144-1)+H155*H143))))))))))))))) -> 0
F163: Dedução ascendentes | G163: =IF(C97=2,IF(C92=0,0,IF(C92=1,G159/2,(G158*C92)/2)),IF(C92=0,0,IF(C92=1,G159,(G158*C92)))) -> 0 | H163: =IF(C97=2,IF(C92=0,0,IF(C92=1,H159/2,(H158*C92)/2)),IF(C92=0,0,IF(C92=1,H159,(H158*C92)))) -> 0
F166: Rendimento colectável | H166: Limite Dedução Rendas 2021
F167: (Euros)
F168: De | G168: Até
F169: 0 | G169: 7112 | H169: 800
F170: =G169 -> 7112 | G170: 30000 | H170: =502+((800-502)*((30000-G36)/(30000-F170))) -> 892.5976931
F172: Rendimento colectável | H172: Limite Dedução Juros 2021
F173: (Euros)
F174: De | G174: Até
F175: 0 | G175: 7112 | H175: 450
F176: =G175 -> 7112 | G176: 30000 | H176: =296+((450-296)*((30000-G36)/(30000-F176))) -> 497.8524991
F178: Rendimento colectável | H178: Limite Dedução Rendas 2022
F179: (Euros)
F180: De | G180: Até
F181: 0 | G181: 7116 | H181: 800
F182: =G181 -> 7116 | G182: 30000 | H182: =502+((800-502)*((30000-H36)/(30000-F182))) -> 892.6659675
F185: Rendimento colectável | H185: Limite Dedução Juros 2022
F186: (Euros)
F187: De | G187: Até
F188: 0 | G188: 7116 | H188: 450
F189: =G188 -> 7116 | G189: 30000 | H189: =296+((450-296)*((30000-H36)/(30000-F189))) -> 497.8877819

Sheet Capa

Sheet Simular IRS 2022
B6: Passo 1 | D6: Informação pessoal
D8: Estado civil
D10: Tributação Separada / Tributação Conjunta
D12: Nº de Dependentes com 3 anos ou menos
D14: Nº de Dependentes entre 4 e 6 anos
D16: Nº de Dependentes com mais de 6 anos
D18: Nº de Ascendentes
D20: Idade Sujeito Passivo A
D22: Idade Sujeito Passivo B
B25: Passo 2 | D25: Rendimentos
B26: Categoria A | G26: Sujeito Passivo A | L26: Sujeito Passivo B
D27: Rendimentos do trabalho dependente
B30: Categoria H
D31: Pensões de velhice
B35: Passo 3 | D35: Deduções à coleta do IRS, incluindo benefícios fiscais
B36: Deduções à coleta
D37: Despesas de saúde e prémios de seguros de saúde
D39: Despesas de educação do agregado familiar
D41: Despesas com aquisição de imóvel para habitação própria permanente
D42: Ano do contrato (preenchimento obrigatório)
D44: Juros
D46: Despesas com rendas para habitação própria permanente
D48: Despesas gerais (outras não referidas acima)
D50: Encargos com pensões de alimentos
D54: Contribuições para Planos Poupança Reforma (PPR's)
D56: Sujeito Passivo A
D58: Sujeito Passivo B
D60: Encargos com donativos
D65: =IF('BIG SIMULATOR'!C86="","Falta preencher dados",""&'BIG SIMULATOR'!C86&""&IF('BIG SIMULATOR'!C87=1,"",", "&'BIG SIMULATOR'!C98)&""&", "&IF('BIG SIMULATOR'!C91>1,""&'BIG SIMULATOR'!C91&" filhos",IF('BIG SIMULATOR'!C91=1,""&'BIG SIMULATOR'!C91&" filho","sem filhos")))&", "&IF('BIG SIMULATOR'!C92=0," sem ascendentes",IF('BIG SIMULATOR'!C92=1,""&'BIG SIMULATOR'!C92&" ascendente",""&'BIG SIMULATOR'!C92&" ascendentes")) -> 0, sem filhos, sem ascendentes
D68: Rendimento bruto | E68: 2021 | G68: 2022
D69: Rendimento bruto | E69: =IFERROR(+'BIG SIMULATOR'!$M$90,0) -> 0 | G69: =IFERROR(+'BIG SIMULATOR'!$M$90,0) -> 0
D70: IRS antes de deduções (1) | E70: ='BIG SIMULATOR'!G44 -> 0 | G70: ='BIG SIMULATOR'!H44 -> 0
D71: Deduções à coleta:
D72: Deduções por dependente / ascendente | E72: ='BIG SIMULATOR'!G47 -> 0 | G72: ='BIG SIMULATOR'!H47 -> 0
D73: Despesas gerais | E73: ='BIG SIMULATOR'!G48 -> 0 | G73: =+'BIG SIMULATOR'!H48 -> 0
D74: Saúde / Educação / Imóveis / Pensão de alimentos | E74: ='BIG SIMULATOR'!G55 -> 0 | G74: ='BIG SIMULATOR'!H55 -> 0
D75: Benefícios fiscais | E75: ='BIG SIMULATOR'!G58 -> 0 | G75: ='BIG SIMULATOR'!H58 -> 0
D76: Total deduções à coleta ou limite (2) | E76: ='BIG SIMULATOR'!G63 -> 0 | G76: ='BIG SIMULATOR'!H63 -> 0
D77: Mínimo de existência (3) | E77: =+'BIG SIMULATOR'!G75 -> 0 | G77: =+'BIG SIMULATOR'!H75 -> 0
D78: Imposto final (1) - (2) - (3) | E78: ='BIG SIMULATOR'!G44-'BIG SIMULATOR'!G63-'BIG SIMULATOR'!G75 -> 0 | G78: ='BIG SIMULATOR'!H44-'BIG SIMULATOR'!H63-'BIG SIMULATOR'!H75 -> 0
D79: Rendimento líquido de IRS | E79: ='BIG SIMULATOR'!G80 -> 0 | G79: ='BIG SIMULATOR'!H80 -> 0
D80: Diferença de rendimento líquido face a 2021 | G80: ='BIG SIMULATOR'!H81 -> 0
D81: Taxa efetiva | E81: ='BIG SIMULATOR'!G78 -> 0 | G81: ='BIG SIMULATOR'!H78 -> 0
D84: Caso o imposto final seja inferior a 25 €, não haverá lugar ao pagamento de qualquer imposto

Sheet Informações 2022
C6: Deduções por dependentes e ascendentes
C8: À coleta do IRS devida pelos sujeitos passivos, é dedutível:
C9: a) € 600 por cada dependente, acrescendo:
C10: - 126 €, para o primeiro dependente com idade igual ou inferior a 3 anos;
C11: - 300 €, para o segundo dependente e seguintes que não ultrapassem 3 anos de idade;
C12: - 150 €, para o segundo dependente e seguintes com idades compreendidas entre 4 e 6 anos.
C13: b) € 525 por cada ascendente (acresce € 110 se existir apenas um ascendente no agregado familiar).*
C15: * O ascendente terá que viver em comunhão de habitação com o sujeito passivo e não poderá auferir rendimento superior à pensão mínima do regime geral
C17: Deduções por despesas gerais
C19: 35% do valor suportado por qualquer membro do agregado familiar:
C20: ● limite global de € 250 para cada sujeito passivo;
C21: ● a dedução opera no ano em que as faturas foram emitidas;
C22: ● para beneficiar da dedução os sujeitos passivos devem pedir ao emitente a inclusão do seu número de identificação fiscal nas faturas;
C23: ● o valor da dedução é apurado com base nas faturas comunicadas à Autoridade Tributária (AT) pelos emitentes até 25 de fevereiro do ano seguinte ao da sua emissão;
C24: 45% do valor suportado por qualquer membro do agregado familiar com o limite global de € 335, nas famílias monoparentais.
C26: Dedução por despesas de saúde
C28: 15% do valor suportado por qualquer membro do agregado familiar:
C29: ● limite global de € 1.000;
C30: ● são elegíveis para dedução as faturas que titulem prestações de serviços e aquisições de bens, isentos de IVA ou tributados à taxa reduzida, nas seguintes atividades:
C31: - atividade de saúde humana;
C32: - comércio a retalho de produtos farmacêuticos, em estabelecimentos especializados;
C33: - comércio a retalho de produtos médicos e ortopédicos, em estabelecimentos especializados;
C34: - comércio a retalho de material ótico, em estabelecimentos especializados
C35: - prémios de seguros de saúde.
C36: ● são elegíveis para dedução as faturas que titulem prestações de serviços e aquisições de bens, tributados à taxa normal de IVA, desde que devidamente justificados através de receita médica.
C38: Dedução por despesas com educação
C40: 30% do valor suportado por qualquer membro do agregado familiar com o limite global de € 800. Este limite pode ser aumentado em € 200, quando a diferença seja relativa a arrendamento de imóvel ou de parte de imóvel, a membros do agregado familiar que não tenham mais de 25 anos (cuja localização se situe a uma distância superior a 50 Kms da residência permanente);
C42: Majoração de 10% do valor de despesas suportadas por estudantes que frequentem estabelecimentos de ensino situados em território do interior e regiões autónomas, caso em que o limite global acima referido é elevado para € 1.000, se derivado deste tipo de despesas.
C44: Dedução por encargos com imóveis
C46: 15% do valor suportado por qualquer membro do agregado familiar, relativamente a rendas para fins de habitação permanente, com o limite de € 502. Este limite poderá ser superior, consoante o rendimento coletável do agregado familiar. No caso de transferência de residência permanente para um território do interior, o limite poderá ser aumentado para € 1,000, durante 3 anos;
C48: 15% do valor suportado por qualquer membro do agregado familiar, relativamente a juros de dívidas, por contratos celebrados até 31 de dezembro de 2011, contraídas para aquisição, construção ou beneficiação de imóveis para fins de habitação permanente ou arrendamento, com o limite de € 296. Este limite poderá ser superior, consoante o rendimento coletável do agregado familiar.
C50: Dedução por exigência de fatura
C52: 15% do IVA suportado, por qualquer membro do agregado familiar que conste de faturas que titulem determinadas prestações de serviço (manutenção e reparação de veículos automóveis e motociclos, alojamento, restauração e similares, atividades de salões de cabeleireiro e institutos de beleza, atividades veterinárias e atividades de clubes desportivos e ginásios), dedução de 100% do IVA suportado, por qualquer membro do agregado familiar com aquisição de passes mensais para utilização de transportes públicos e dedução de 35% do IVA suportado, por qualquer membro do agregado familiar com aquisição de medicamentos para uso veterinário.
C54: Despesas com pensões de alimentos
C56: 20% dos encargos com pensões de alimentos, desde que resultantes de sentença judicial ou acordo judicialmente homologado.
C58: Encargos com donativos
C60: 25% dos donativos destinados a igrejas, instituições religiosas, instituições de caridade, museus, escolas, bibliotecas e outras entidades de cariz social, cultural ou científico reconhecidas pelo Estado, até ao limite de 15% da coleta.
C62: Contribuições para Planos Poupança Reforma (PPR)
C64: 20% do valor aplicado com o limite de € 300, € 350 ou € 400 consoante a idade do sujeito passivo.
C66: Taxas IRS (para 2022)
C68: Rendimento Coletável (€) | F68: Taxas | G68: Parcela a abater (€)
C69: Até 7.116 | F69: 14,5% | G69: 0
C70: De mais de 7.116 até 10.736 | F70: 0.23 | G70: 604.86
C71: De mais de 10.736 até 15.216 | F71: 0.265 | G71: 980.63
C72: De mais de 15.216 até 19.696 | F72: 28,5% | G72: 1284.99
C73: De mais de 19.696 até 25.076 | F73: 0.35 | G73: 2565.21
C74: De mais de 25.076 até 36.757 | F74: 0.37 | G74: 3066.79
C75: De mais de 36.757 até 48.033 | F75: 0.435 | G75: 5455.84
C76: De mais de 48.033 até 75.009 | F76: 0.45 | G76: 6176.56
C77: Superior a 75.009 | F77: 0.48 | G77: 8426.51

Sheet Disclaimer
C10: Simulador não prevê as seguintes situações
C12: - Residentes fiscais nos Açores e na Madeira;
C13: - Sujeitos passivos deficientes;
C14: - Agregados Familiares em que os dependentes ou os ascendentes aufiram rendimentos;
C15: - Situações de guarda conjunta de dependentes.
C17: Pressupostos da estimativa de imposto
C19: - As simulações de imposto encontram-se limitadas às categorias de rendimentos e despesas incluídas no simulador;
C20: - As estimativas disponibilizadas são meramente ilustrativas e baseadas na interpretação da PwC da Proposta de Lei n.º 4/XV/1.ª, relativamente ao Orçamento de Estado para 2022;
C21: - As simulações de imposto não consideram o mínimo de existência (i.e. a não aplicação das taxas progressivas) para agregados familiares com três ou mais dependentes com rendimentos baixos.
C23: Rendimentos do trabalho dependente
C25: - No cálculo da dedução específica, considera-se 11% do valor bruto do rendimento, respeitante a contribuições para a segurança social, ou 4.104 € se superior.
C27: Pensões
C29: - No cálculo da dedução específica das pensões, considera-se que o valor de contribuições obrigatórias para regimes de proteção social e para subsistemas legais de saúde é inferior a € 4.104.
C31: Deduções à coleta
C33: Despesas de educação
C34: - O simulador não contempla as situações de despesas relativas a arrendamento de imóvel de estudantes que frequentem um estabelecimento de ensino a uma distância superior a 50 km da sua residência permanente nem a majoração dos encargos incorridos por estudantes que frequentem estabelecimentos de ensino situados no interior e nas regiões autónomas.
C36: Encargos com imóveis
C37: - O simulador não contempla a majoração do limite de dedução por encargos com imóveis, referente à transferência de residência permanente para um território do interior.
C39: Encargos com donativos
C40: - Assume-se por defeito uma majoração de 130%, sem qualquer limitação, dos encargos com donativos. No entanto, a majoração destes encargos dependerá da natureza da entidade beneficiária do mesmo.
C42: Exigência de fatura
C43: - O simulador não contempla a dedução referente à exigência de fatura.
C45: Tributação separada
C46: - No valor das despesas referentes a educação, saúde e encargos com imóveis, deverá colocar a totalidade das despesas incorridas pelo seu agregado familiar;
C47: - No valor das despesas gerais e familiares, deverá colocar a totalidade das despesas incorridas por si e 50% das despesas incorridas pelos seus dependentes;
C48: - No valor dos donativos, deverá colocar a totalidade dos donativos efetuados por si e 50% do valor dos donativos efetuados pelos seus dependentes;
C49: - No valor das pensões de alimentos, deverá colocar unicamente o valor de pensões de alimentos pagas por si.

Sheet Ajuda
